bitfinex/quotes_BTCUSD_20230114
["timestamp","ask_amount","ask_price","bid_price","bid_amount"]
[1673672365095,0.628455,20901.0,20897.0,0.1]
[1673672365096,0.6274653,20901.0,20897.0,0.1]
[1673672365343,0.6274653,20901.0,20898.0,0.11253746]
[1673672365344,0.478455,20901.0,20898.0,0.11253746]
[1673672365587,0.17284209,20901.0,20898.0,0.11253746]
[1673672365831,0.957069,20902.0,20898.0,0.11253746]
[1673672366078,0.002,20901.0,20899.0,0.20050605]
[1673672366324,0.48436992,20903.0,20899.0,0.20050605]
[1673672366572,0.001,20901.0,20899.0,0.31304351]
[1673672366817,0.001,20901.0,20899.0,0.20050605]
[1673672367060,0.00596192,20903.0,20898.0,0.2274]
[1673672367302,0.19668787,20903.0,20899.0,0.1711144]
[1673672367544,0.016,20901.0,20899.0,0.28365186]
[1673672367782,0.016,20901.0,20899.0,0.1711144]
[1673672368267,0.13700359,20903.0,20899.0,0.1711144]
[1673672368268,0.61540959,20903.0,20899.0,0.1711144]
[1673672368509,0.016,20901.0,20899.0,0.1711144]
[1673672368743,0.61540659,20903.0,20899.0,0.1711144]
[1673672369046,0.002,20901.0,20899.0,0.42265186]
[1673672369272,0.61540659,20903.0,20899.0,0.1711144]
[1673672369525,0.001,20901.0,20899.0,0.33665186]
[1673672369756,0.001,20901.0,20899.0,0.2241144]
[1673672370229,0.001,20901.0,20900.0,0.320739]
[1673672370489,0.001,20901.0,20899.0,0.2241144]
[1673672371207,0.001,20901.0,20900.0,0.200871]
[1673672372395,0.00602192,20903.0,20900.0,0.200871]
[1673672372659,0.016,20901.0,20900.0,0.200871]
[1673672373366,0.00596192,20903.0,20900.0,0.200871]
[1673672373625,0.00596192,20903.0,20900.0,0.11253746]
[1673672373868,0.00596192,20903.0,20900.0,0.81920146]
[1673672374141,0.00596192,20903.0,20901.0,0.447739]
[1673672374371,0.00596192,20903.0,20902.0,0.21464]
[1673672374372,0.02196192,20903.0,20902.0,0.21464]
[1673672374609,0.00596192,20903.0,20902.0,0.31464]
[1673672374848,0.00896192,20903.0,20902.0,0.1]
[1673672375100,0.00596192,20903.0,20902.0,0.1]
[1673672375359,0.00896192,20903.0,20902.0,0.09983325]
[1673672375609,0.00896192,20903.0,20901.0,1.35138585]
[1673672375610,0.00596192,20903.0,20901.0,1.35138585]
[1673672375845,0.34640378,20903.0,20902.0,0.126]
[1673672376085,0.15567783,20903.0,20901.0,0.16750585]
[1673672376334,0.15867783,20903.0,20902.0,0.139]
[1673672377085,0.15656413,20903.0,20902.0,0.139]
[1673672377328,0.15656413,20903.0,20901.0,0.30650585]
[1673672377329,0.15356413,20903.0,20901.0,0.30650585]
[1673672377572,0.15556413,20903.0,20901.0,0.16750585]
[1673672377816,0.15756413,20903.0,20902.0,0.126]
[1673672378059,0.15356413,20903.0,20901.0,0.16750585]
[1673672378301,0.15556413,20903.0,20901.0,0.29350585]
[1673672378549,0.15356413,20903.0,20901.0,0.16750585]
[1673672378793,0.15456413,20903.0,20902.0,0.053]
[1673672379065,0.15356413,20903.0,20901.0,0.16750585]
[1673672379582,0.07800772,20903.0,20901.0,0.16750585]
[1673672379844,0.07800772,20903.0,20899.0,0.578469]
[1673672380093,0.19072595,20902.0,20901.0,0.126]
[1673672380351,0.478423,20902.0,20901.0,0.126]
[1673672380861,0.478423,20902.0,20900.0,0.18706785]
[1673672381115,0.002,20902.0,20901.0,0.126]
[1673672382591,0.07134322,20902.0,20901.0,0.126]
[1673672383793,0.002,20902.0,20901.0,0.126]
[1673672386296,0.002,20902.0,20901.0,0.28009057]
[1673672386546,0.002,20902.0,20901.0,0.126]
[1673672386831,0.002,20902.0,20901.0,0.925185]
[1673672387085,0.002,20902.0,20901.0,1.29480604]
[1673672387322,0.002,20902.0,20901.0,1.50721054]
[1673672387569,0.002,20902.0,20901.0,1.43943439]
[1673672387817,0.002,20902.0,20901.0,1.79690347]
[1673672388090,6e-05,20905.0,20901.0,1.79690347]
[1673672388091,0.00378265,20906.0,20902.0,0.1]
[1673672388338,0.00378265,20906.0,20903.0,1.41185646]
[1673672388576,0.00012,20905.0,20904.0,0.420686]
[1673672388815,0.00012,20905.0,20904.0,0.899116]
[1673672389074,0.00012,20905.0,20904.0,0.578377]
[1673672389339,0.14392833,20905.0,20902.0,0.57764266]
[1673672389593,0.26660428,20905.0,20902.0,0.30649675]
[1673672389846,0.07587833,20905.0,20902.0,0.30649675]
[1673672390090,0.07587833,20905.0,20903.0,0.17121439]
[1673672390341,0.07575833,20905.0,20903.0,0.17121439]
[1673672391556,0.07575833,20905.0,20903.0,0.31221439]
[1673672392781,0.44684815,20906.0,20903.0,0.31221439]
[1673672393785,0.6375741,20906.0,20900.0,0.20003198]
[1673672394033,0.6375741,20906.0,20903.0,0.141]
[1673672394034,0.19072595,20905.0,20903.0,0.141]
[1673672394386,0.956754,20904.0,20903.0,0.141]
[1673672394625,0.478377,20904.0,20901.0,0.17512579]
[1673672394877,0.66910295,20904.0,20901.0,0.17512579]
[1673672395112,0.66910295,20904.0,20900.0,0.00019]
[1673672395358,0.1,20903.0,20900.0,0.00019]
[1673672395603,0.66913595,20903.0,20900.0,0.00019]
[1673672395861,0.47841,20903.0,20900.0,0.14638658]
[1673672396613,0.47841,20903.0,20900.0,0.14619658]
[1673672397350,0.478377,20904.0,20900.0,0.28519658]
[1673672397615,0.478377,20904.0,20900.0,0.39773404]
[1673672398088,0.66910295,20904.0,20900.0,0.28019658]
[1673672398329,0.00692087,20903.0,20900.0,0.28019658]
[1673672399325,0.00692087,20903.0,20900.0,0.14119658]
[1673672400132,0.00692087,20903.0,20900.0,0.28019658]
[1673672400411,0.00205087,20903.0,20901.0,0.19849501]
[1673672401099,0.478398,20904.0,20901.0,0.31103247]
[1673672401344,0.00012,20905.0,20901.0,0.11253746]
[1673672401611,0.00012,20905.0,20902.0,0.11253746]
[1673672401875,1.571322,20907.0,20902.0,0.34073746]
[1673672402129,2.74488138,20908.0,20903.0,0.11253746]
[1673672402379,0.50466987,20909.0,20904.0,0.11253746]
[1673672402380,0.63282076,20909.0,20904.0,0.11253746]
[1673672402615,0.63282076,20909.0,20903.0,0.578389]
[1673672402616,0.006216,20908.0,20905.0,0.11253746]
[1673672403146,0.6266093,20909.0,20903.0,1.056778]
[1673672403374,0.00499604,20908.0,20904.0,0.37851744]
[1673672403618,0.00499604,20908.0,20904.0,0.17151744]
[1673672403875,0.00499604,20908.0,20905.0,0.035]
[1673672404114,0.00499604,20908.0,20904.0,0.7624299]
[1673672404365,0.00499604,20908.0,20904.0,0.75689244]
[1673672404610,0.00499604,20908.0,20904.0,0.64989244]
[1673672404840,0.00499604,20908.0,20905.0,0.035]
[1673672405785,0.7812878,20909.0,20906.0,0.18480993]
[1673672406760,0.56771574,20909.0,20906.0,0.29734739]
[1673672406999,0.56771574,20909.0,20906.0,0.18480993]
[1673672407960,0.7812878,20909.0,20906.0,0.18480993]
[1673672408276,0.56771574,20909.0,20906.0,0.18480993]
[1673672410194,0.00692531,20910.0,20906.0,0.24073746]
[1673672410430,0.00692531,20910.0,20907.0,0.320739]
[1673672410675,0.00692531,20910.0,20907.0,0.11253746]
[1673672410924,0.00692531,20910.0,20907.0,0.24073746]
[1673672411173,0.00692531,20910.0,20908.0,0.320739]
[1673672411413,0.00692531,20910.0,20908.0,0.19450135]
[1673672413175,0.00692531,20910.0,20908.0,0.30150135]
[1673672413913,0.00692531,20910.0,20909.0,0.1739035]
[1673672414163,0.00692531,20910.0,20909.0,0.4946425]
[1673672414418,0.00692531,20910.0,20909.0,0.1739035]
[1673672415615,0.00310986,20911.0,20910.0,0.1]
[1673672416109,0.00310986,20911.0,20909.0,0.3089035]
[1673672416381,0.00310986,20911.0,20909.0,0.578262]
[1673672416625,0.00310986,20911.0,20910.0,0.50149382]
[1673672416898,0.00310986,20911.0,20910.0,0.28453128]
[1673672417138,0.00310986,20911.0,20910.0,0.135]
[1673672417380,0.00310986,20911.0,20910.0,0.21253746]
[1673672417620,0.00310986,20911.0,20910.0,1.09908322]
[1673672417863,0.00310986,20911.0,20910.0,0.77834422]
[1673672418114,0.00310986,20911.0,20910.0,0.57824]
[1673672418355,0.00310986,20911.0,20910.0,0.7201488]
[1673672418596,0.00310986,20911.0,20910.0,1.0758878]
[1673672418857,0.50800891,20915.0,20911.0,0.1]
[1673672418858,0.47248136,20915.0,20911.0,0.1]
[1673672419100,0.47248136,20915.0,20912.0,0.18847489]
[1673672419354,0.47248136,20915.0,20909.0,0.606462]
[1673672419594,0.19072595,20914.0,20908.0,0.478269]
[1673672419835,0.19072595,20913.0,20909.0,0.15836096]
[1673672420091,0.19072595,20913.0,20912.0,0.009]
[1673672420338,0.478176,20913.0,20910.0,0.19281286]
[1673672421566,0.478176,20913.0,20912.0,0.009]
[1673672422286,0.478176,20913.0,20910.0,0.19281286]
[1673672422524,0.478176,20913.0,20909.0,0.18237102]
[1673672422773,0.66890195,20913.0,20909.0,0.18237102]
[1673672423042,0.478176,20913.0,20912.0,0.009]
[1673672423287,0.478176,20913.0,20909.0,0.18237102]
[1673672423532,0.478176,20913.0,20910.0,0.14800021]
[1673672424645,0.478176,20913.0,20907.0,0.20199]
[1673672424650,0.478176,20913.0,20908.0,0.20020459]
[1673672424866,0.66890195,20913.0,20908.0,0.20020459]
[1673672425259,0.19072595,20912.0,20907.0,0.00019]
[1673672425474,1.62540695,20911.0,20907.0,0.00019]
[1673672425717,0.31892595,20910.0,20907.0,0.00019]
[1673672425973,1.14724995,20909.0,20907.0,0.00019]
[1673672426105,1.14724995,20909.0,20905.0,0.1513483]
[1673672426968,1.14724995,20909.0,20903.0,0.01330333]
[1673672427193,0.19072595,20908.0,20904.0,0.14529254]
[1673672427410,0.956626,20907.0,20904.0,0.14529254]
[1673672428091,1.535383,20909.0,20904.0,0.25153746]
[1673672428352,1.0571,20909.0,20905.0,0.11253746]
[1673672428796,1.0571,20909.0,20905.0,0.21253746]
[1673672429036,0.478253,20910.0,20905.0,0.21253746]
[1673672429483,0.66897895,20910.0,20905.0,0.21253746]
[1673672429718,0.66897895,20910.0,20906.0,0.15091473]
[1673672429959,0.478253,20910.0,20906.0,0.26345219]
[1673672430854,0.478253,20910.0,20906.0,0.15091473]
[1673672431096,0.478253,20910.0,20906.0,0.29091473]
[1673672431335,0.66897895,20910.0,20906.0,0.29091473]
[1673672431781,0.55776365,20910.0,20906.0,0.29091473]
[1673672432316,0.3670377,20910.0,20906.0,0.29091473]
[1673672432758,0.3670377,20910.0,20907.0,0.17951103]
[1673672433220,0.3670377,20910.0,20906.0,0.14]
[1673672433446,0.3670377,20910.0,20904.0,0.00019]
[1673672433447,0.1282,20908.0,20904.0,0.00019]
[1673672433681,1.14735195,20907.0,20904.0,0.00019]
[1673672433922,1.14735195,20907.0,20903.0,0.16698858]
[1673672434361,1.14735195,20907.0,20906.0,0.14]
[1673672434362,1.36608628,20907.0,20906.0,0.14]
[1673672434600,1.083926,20907.0,20906.0,0.14]
[1673672434847,1.73576766,20907.0,20906.0,0.14]
[1673672435067,1.73576766,20907.0,20903.0,0.01330333]
[1673672435294,0.53696028,20906.0,20903.0,0.01330333]
[1673672435527,0.956708,20905.0,20903.0,0.01330333]
[1673672436462,0.956708,20905.0,20903.0,0.15230333]
[1673672436702,0.956708,20905.0,20903.0,0.01330333]
[1673672437384,0.957708,20905.0,20903.0,0.15230333]
[1673672437606,0.956708,20905.0,20903.0,0.01330333]
[1673672437831,0.965708,20905.0,20903.0,0.02230333]
[1673672439035,0.965708,20905.0,20903.0,0.20674213]
[1673672439272,0.965708,20905.0,20904.0,0.19092424]
[1673672439979,0.956708,20905.0,20904.0,0.19092424]
[1673672440440,0.964708,20905.0,20904.0,0.19092424]
[1673672440665,0.478354,20905.0,20904.0,0.19092424]
[1673672440891,0.008,20905.0,20904.0,0.19592424]
[1673672441117,0.478331,20906.0,20904.0,0.19092424]
[1673672441344,0.008,20905.0,20904.0,0.19592424]
[1673672441568,0.478331,20906.0,20904.0,0.19092424]
[1673672442508,0.478329,20907.0,20904.0,0.23092424]
[1673672442741,0.478329,20907.0,20904.0,0.3034617]
[1673672442978,0.478302,20908.0,20904.0,0.23092424]
[1673672443204,0.478302,20908.0,20904.0,0.3034617]
[1673672443668,0.478302,20908.0,20904.0,0.3434617]
[1673672444158,0.478302,20908.0,20904.0,0.3834617]
[1673672444379,0.478279,20909.0,20904.0,0.19253746]
[1673672444619,0.478244,20910.0,20905.0,0.11253746]
[1673672444858,0.3770238,20910.0,20906.0,0.11253746]
[1673672445097,0.3770238,20910.0,20907.0,0.14277216]
[1673672445323,0.3770238,20910.0,20907.0,0.25530962]
[1673672445557,0.3770238,20910.0,20907.0,0.14277216]
[1673672446705,0.47823,20911.0,20907.0,0.14277216]
[1673672447177,0.66895595,20911.0,20907.0,0.14277216]
[1673672447400,0.47823,20911.0,20907.0,0.14277216]
[1673672448370,0.66895595,20911.0,20907.0,0.14277216]
[1673672448833,0.47823,20911.0,20907.0,0.14277216]
[1673672449066,0.66895595,20911.0,20907.0,0.14277216]
[1673672449309,0.47823,20911.0,20907.0,0.14277216]
[1673672449770,0.62061138,20911.0,20907.0,0.14277216]
[1673672450009,0.62061138,20911.0,20907.0,0.25530962]
[1673672450233,0.47823,20911.0,20908.0,0.18549728]
[1673672451146,0.47823,20911.0,20908.0,0.19049728]
[1673672451884,0.62058138,20912.0,20908.0,0.19049728]
[1673672451885,0.14238138,20912.0,20909.0,0.11253746]
[1673672452119,0.47815,20914.0,20910.0,0.11253746]
[1673672452357,0.62052238,20915.0,20911.0,0.43327646]
[1673672452611,0.62052238,20915.0,20912.0,0.11253746]
[1673672452833,0.62052238,20915.0,20912.0,0.29802776]
[1673672453289,0.62052238,20915.0,20912.0,0.1854903]
[1673672453744,0.478141,20915.0,20912.0,0.1854903]
[1673672454199,0.478141,20915.0,20912.0,0.2204903]
[1673672458182,0.3769369,20915.0,20912.0,0.2204903]
[1673672458431,0.1269369,20915.0,20913.0,0.18715267]
[1673672459350,0.48479682,20916.0,20913.0,0.18715267]
[1673672459596,0.48479682,20916.0,20913.0,0.29969013]
[1673672460071,0.48479682,20916.0,20913.0,0.18715267]
[1673672460323,0.00667982,20916.0,20913.0,0.18715267]
[1673672461947,0.00667982,20916.0,20913.0,0.605171]
[1673672462193,0.00667982,20916.0,20913.0,0.227]
[1673672462440,0.00667982,20916.0,20914.0,0.1]
[1673672462994,0.19740577,20916.0,20912.0,0.31016168]
[1673672463174,0.19072595,20915.0,20910.0,0.18663061]
[1673672463423,0.19072595,20914.0,20911.0,0.15710607]
[1673672464137,0.478141,20915.0,20914.0,0.005]
[1673672464380,0.478141,20915.0,20911.0,0.15710607]
[1673672464613,0.66886695,20915.0,20911.0,0.26410607]
[1673672465098,0.93844833,20915.0,20911.0,0.107]
[1673672465325,0.1282,20912.0,20911.0,0.107]
[1673672465580,1.662782,20912.0,20907.0,0.1942178]
[1673672465836,0.1,20910.0,20907.0,0.00019]
[1673672466074,0.956524,20909.0,20907.0,0.00019]
[1673672466313,1.14724995,20909.0,20907.0,0.00019]
[1673672466549,0.956524,20909.0,20907.0,0.00019]
[1673672466787,0.956524,20909.0,20907.0,0.13919]
[1673672467259,0.956524,20909.0,20907.0,0.27819]
[1673672467727,0.956524,20909.0,20907.0,0.278]
[1673672469172,0.956524,20909.0,20907.0,0.176794]
[1673672472895,0.77188523,20909.0,20907.0,0.176794]
[1673672473650,0.29362323,20909.0,20908.0,0.16558928]
[1673672473875,0.478251,20910.0,20908.0,0.16558928]
[1673672475066,0.478251,20910.0,20908.0,0.25658928]
[1673672475067,0.008,20910.0,20908.0,0.25658928]
[1673672475306,0.008,20910.0,20908.0,0.33173746]
[1673672475541,0.008,20910.0,20909.0,0.547739]
[1673672475803,0.008,20910.0,20909.0,1.026001]
[1673672477580,0.008,20910.0,20909.0,1.117001]
[1673672478546,0.008,20910.0,20909.0,1.25994691]
[1673672478786,0.008,20910.0,20909.0,1.117001]
[1673672479029,0.008,20910.0,20909.0,0.5844955]
[1673672480320,0.008,20910.0,20909.0,0.2637565]
[1673672481055,0.008,20910.0,20909.0,0.091]
[1673672481298,0.02742016,20909.0,20908.0,1.22769291]
[1673672481555,0.02742016,20909.0,20908.0,0.96381091]
[1673672481808,0.02742016,20909.0,20908.0,1.27822978]
[1673672482046,0.02742016,20909.0,20908.0,0.36193005]
[1673672482800,0.04242016,20909.0,20908.0,0.36893005]
[1673672483045,0.04242016,20909.0,20908.0,0.15452805]
[1673672483781,0.04242016,20909.0,20908.0,0.36893205]
[1673672486176,0.04242016,20909.0,20908.0,0.84721705]
[1673672486936,0.04242016,20909.0,20908.0,0.84263491]
[1673672487199,0.04242016,20909.0,20908.0,1.05705378]
[1673672487467,2.60917982,20916.0,20909.0,0.1]
[1673672487710,2.60917982,20916.0,20911.0,1.099371]
[1673672487969,0.00667982,20916.0,20912.0,0.11253746]
[1673672488229,0.00667982,20916.0,20913.0,0.11253746]
[1673672488732,0.00667982,20916.0,20912.0,0.30620735]
[1673672489200,0.00967982,20916.0,20912.0,0.30620735]
[1673672489445,0.00667982,20916.0,20912.0,0.30620735]
[1673672489714,0.00867982,20916.0,20913.0,0.084]
[1673672489967,0.00667982,20916.0,20912.0,0.30620735]
[1673672490216,0.00867982,20916.0,20913.0,0.1]
[1673672490457,0.00867982,20916.0,20913.0,0.73113814]
[1673672490698,0.00867982,20916.0,20913.0,0.85883814]
[1673672490936,0.00867982,20916.0,20913.0,0.705864]
[1673672490937,0.00667982,20916.0,20913.0,0.705864]
[1673672491176,0.00967982,20916.0,20913.0,0.88741128]
[1673672491388,0.00667982,20916.0,20913.0,0.88741128]
[1673672491605,0.00667982,20916.0,20914.0,0.214327]
[1673672491848,0.00667982,20916.0,20914.0,0.478134]
[1673672492066,0.00667982,20916.0,20915.0,0.1]
[1673672492274,0.00167982,20916.0,20914.0,0.478147]
[1673672492626,0.04167982,20916.0,20914.0,0.958274]
[1673672492864,0.00167982,20916.0,20914.0,0.956274]
[1673672493106,0.00167982,20916.0,20915.0,0.15215126]
[1673672493879,0.03867982,20916.0,20915.0,0.16115126]
[1673672494113,0.00167982,20916.0,20915.0,0.15215126]
[1673672494356,0.00167982,20916.0,20915.0,0.16415126]
[1673672496565,0.00167982,20916.0,20915.0,0.64227626]
[1673672498508,0.00167982,20916.0,20915.0,0.85658826]
[1673672499246,0.00167982,20916.0,20915.0,0.64227626]
[1673672499733,0.00167982,20916.0,20915.0,0.98478826]
[1673672500281,0.00167982,20916.0,20915.0,0.85658826]
[1673672500480,3.55617222,20920.0,20915.0,0.64227626]
[1673672500775,0.95367222,20920.0,20916.0,0.14630103]
[1673672501517,0.36852676,20919.0,20915.0,0.012]
[1673672501761,0.956122,20918.0,20914.0,0.17058721]
[1673672502021,0.320707,20917.0,20916.0,0.002]
[1673672502257,0.798787,20917.0,20916.0,0.002]
[1673672502991,0.798787,20917.0,20914.0,0.17058721]
[1673672503238,0.66880595,20917.0,20915.0,0.012]
[1673672503498,0.420707,20916.0,20912.0,0.19695374]
[1673672503748,0.66883495,20916.0,20912.0,0.19714374]
[1673672504001,0.76883495,20916.0,20912.0,0.19714374]
[1673672504265,0.66883495,20916.0,20915.0,0.012]
[1673672504512,0.798816,20916.0,20912.0,0.19714374]
[1673672504762,0.67183495,20916.0,20912.0,0.33614374]
[1673672505013,0.66883495,20916.0,20912.0,0.19714374]
[1673672505995,0.320707,20915.0,20912.0,0.19714374]
[1673672506235,0.956212,20916.0,20912.0,0.19695374]
[1673672506736,0.956212,20916.0,20915.0,0.012]
[1673672507015,1.276919,20916.0,20915.0,0.012]
[1673672507256,1.276919,20916.0,20911.0,0.17335939]
[1673672507504,0.19072595,20915.0,20912.0,0.139]
[1673672507758,1.14695195,20916.0,20911.0,0.17354939]
[1673672508004,1.14695195,20916.0,20911.0,0.00019]
[1673672508005,0.66885495,20915.0,20911.0,0.00019]
[1673672508250,0.420707,20914.0,20911.0,0.00019]
[1673672508504,0.320707,20913.0,20911.0,0.00019]
[1673672508761,0.320707,20913.0,20912.0,0.139]
[1673672508762,0.66889695,20913.0,20912.0,0.139]
[1673672508965,0.798878,20913.0,20912.0,0.139]
[1673672509267,0.898878,20913.0,20912.0,0.139]
[1673672509753,0.1,20912.0,20907.0,0.16936771]
[1673672509998,0.66895395,20911.0,20907.0,0.16936771]
[1673672510247,0.51143295,20910.0,20907.0,0.16936771]
[1673672510460,0.66896895,20910.0,20907.0,0.16936771]
[1673672510978,0.478243,20910.0,20907.0,0.16936771]
[1673672511216,0.478243,20910.0,20907.0,0.30736771]
[1673672511462,0.478243,20910.0,20907.0,0.16936771]
[1673672511709,0.478243,20910.0,20907.0,0.138]
[1673672511710,0.67196895,20910.0,20907.0,0.138]
[1673672511950,0.320707,20909.0,20907.0,0.138]
[1673672512198,0.95657,20908.0,20907.0,0.138]
[1673672512449,1.277277,20908.0,20907.0,0.138]
[1673672512926,1.277277,20908.0,20905.0,0.01248232]
[1673672513183,1.14729595,20908.0,20907.0,0.138]
[1673672513433,1.277277,20908.0,20905.0,0.01248232]
[1673672513683,0.8398557,20908.0,20907.0,0.002]
[1673672513930,1.1225627,20908.0,20905.0,0.01248232]
[1673672514169,0.8038557,20908.0,20905.0,0.09548232]
[1673672514410,0.3255707,20908.0,20905.0,0.09548232]
[1673672515170,0.002,20908.0,20905.0,0.09548232]
[1673672516161,0.002,20908.0,20905.0,0.70203632]
[1673672516491,0.002,20908.0,20906.0,0.21443]
[1673672516602,0.002,20908.0,20906.0,0.31443]
[1673672516826,0.002,20908.0,20907.0,0.214418]
[1673672517062,0.002,20908.0,20907.0,0.692726]
[1673672517306,3.287097,20914.0,20907.0,0.692726]
[1673672517546,3.080667,20914.0,20907.0,0.478308]
[1673672517781,3.27139295,20914.0,20907.0,0.478308]
[1673672518255,0.19072595,20913.0,20907.0,0.538308]
[1673672518717,0.19072595,20913.0,20907.0,0.69014933]
[1673672519232,0.19072595,20913.0,20907.0,0.538308]
[1673672519482,0.19072595,20913.0,20907.0,0.598308]
[1673672519724,0.19072595,20913.0,20907.0,0.478308]
[1673672519965,0.19072595,20913.0,20908.0,0.1]
[1673672520141,3.080667,20914.0,20908.0,1.14864951]
[1673672520386,2.79322595,20914.0,20909.0,0.1]
[1673672520612,0.478139,20915.0,20909.0,0.478262]
[1673672520833,0.66886495,20915.0,20909.0,0.478262]
[1673672521496,0.66886495,20915.0,20909.0,0.537262]
[1673672521909,0.66886495,20915.0,20910.0,0.16477047]
[1673672523611,0.66886495,20915.0,20909.0,0.956502]
[1673672523612,0.478139,20915.0,20909.0,0.956502]
[1673672523830,0.19072595,20915.0,20910.0,0.478234]
[1673672524640,0.19072595,20915.0,20911.0,0.16436529]
[1673672524860,1.454512,20916.0,20911.0,0.16436529]
[1673672524861,0.478112,20916.0,20911.0,0.16436529]
[1673672525306,0.66883795,20916.0,20911.0,0.16436529]
[1673672525752,0.66883795,20916.0,20911.0,0.16636529]
[1673672526411,0.66883795,20916.0,20911.0,0.16836529]
[1673672526667,0.42998202,20916.0,20911.0,0.16836529]
[1673672526907,0.19072595,20916.0,20911.0,0.582211]
[1673672527124,0.19072595,20916.0,20912.0,0.17928556]
[1673672527336,0.47808,20917.0,20912.0,0.17928556]
[1673672527558,0.66880595,20917.0,20912.0,0.17928556]
[1673672527769,0.320707,20916.0,20912.0,0.17928556]
[1673672528039,0.47808,20917.0,20912.0,0.17928556]
[1673672528255,0.320707,20916.0,20912.0,0.17928556]
[1673672528488,0.66880595,20917.0,20912.0,0.17928556]
[1673672528884,0.66880595,20917.0,20912.0,0.23828556]
[1673672529343,0.320707,20916.0,20912.0,0.23828556]
[1673672529533,0.19072595,20916.0,20912.0,0.23828556]
[1673672529745,0.19072595,20916.0,20913.0,0.17400202]
[1673672530027,0.47808,20917.0,20913.0,0.17400202]
[1673672530256,0.320707,20916.0,20913.0,0.17400202]
[1673672530481,0.47808,20917.0,20913.0,0.17400202]
[1673672530675,0.320707,20916.0,20913.0,0.17400202]
[1673672530942,0.47808,20917.0,20913.0,0.17400202]
[1673672531159,0.320707,20916.0,20913.0,0.17400202]
[1673672531377,0.47808,20917.0,20913.0,0.17400202]
[1673672532093,0.320907,20916.0,20913.0,0.17400202]
[1673672532328,0.0002,20916.0,20913.0,0.17400202]
[1673672535455,0.0002,20916.0,20913.0,0.16798714]
[1673672535711,0.0002,20916.0,20915.0,0.1]
[1673672536570,0.0002,20916.0,20914.0,0.26276583]
[1673672536806,0.0002,20916.0,20915.0,0.1]
[1673672537474,0.0002,20916.0,20915.0,0.109]
[1673672537903,0.0002,20916.0,20915.0,0.18426793]
[1673672538575,0.0002,20916.0,20915.0,0.28426793]
[1673672538796,0.0002,20916.0,20915.0,0.27526793]
[1673672539753,0.04083324,20919.0,20915.0,0.17526793]
[1673672540219,0.70959419,20919.0,20915.0,0.17526793]
[1673672540431,0.320707,20918.0,20915.0,0.17526793]
[1673672540620,0.478062,20918.0,20912.0,0.47818]
[1673672540853,0.51143295,20917.0,20913.0,0.19090087]
[1673672541110,0.19072595,20917.0,20913.0,0.19090087]
[1673672541585,0.478062,20918.0,20913.0,0.19090087]
[1673672541828,0.66878795,20918.0,20913.0,0.19090087]
[1673672542328,0.66878795,20918.0,20914.0,0.14362847]
[1673672542329,0.6687002,20918.0,20914.0,0.14362847]
[1673672542564,0.47797425,20918.0,20914.0,0.14362847]
[1673672543801,0.81980706,20919.0,20914.0,0.14362847]
[1673672544041,0.606235,20919.0,20914.0,0.20262847]
[1673672544282,0.79696095,20919.0,20914.0,0.20262847]
[1673672544560,0.478035,20919.0,20914.0,0.059]
[1673672544802,0.66876095,20919.0,20914.0,0.15146354]
[1673672545054,0.66876095,20919.0,20914.0,0.159]
[1673672545287,0.66876095,20919.0,20914.0,0.059]
[1673672545538,0.66876095,20919.0,20914.0,0.23298985]
[1673672545782,0.19072595,20919.0,20915.0,0.19003302]
[1673672545990,1.404523,20920.0,20915.0,0.19003302]
[1673672546519,1.59524895,20920.0,20915.0,0.19003302]
[1673672547120,0.320707,20919.0,20915.0,0.19003302]
[1673672547227,1.59624895,20920.0,20915.0,0.19003302]
[1673672547967,1.59624895,20920.0,20914.0,0.95625]
[1673672547968,0.50088858,20915.0,20914.0,0.95625]
[1673672548218,0.69161453,20915.0,20914.0,0.478125]
[1673672548456,0.50088858,20915.0,20914.0,0.478125]
[1673672548712,0.50088858,20915.0,20914.0,0.67118275]
[1673672549690,0.50088858,20915.0,20914.0,0.73018275]
[1673672551692,1.48088858,20915.0,20914.0,0.73018275]
[1673672552677,1.31487523,20915.0,20914.0,0.73018275]
[1673672555673,1.31487523,20915.0,20914.0,0.059]
[1673672555942,1.46807101,20915.0,20914.0,0.059]
[1673672556921,1.78877801,20915.0,20914.0,0.059]
[1673672561096,2.4096707,20915.0,20914.0,0.059]
[1673672562066,3.28383724,20915.0,20914.0,0.059]
[1673672562367,3.71182093,20915.0,20914.0,0.059]
[1673672563067,3.42668504,20915.0,20914.0,0.059]
[1673672563814,3.71233494,20915.0,20914.0,0.059]
[1673672564529,3.42624922,20915.0,20914.0,0.059]
[1673672565272,3.55374922,20915.0,20914.0,0.059]
[1673672565750,3.71626642,20915.0,20914.0,0.059]
[1673672566518,3.83070183,20915.0,20914.0,0.059]
[1673672566775,3.47428197,20915.0,20914.0,0.059]
[1673672568002,3.83148181,20915.0,20914.0,0.059]
[1673672568261,3.43110448,20915.0,20914.0,0.059]
[1673672569788,3.83147928,20915.0,20914.0,0.059]
[1673672570796,3.83144041,20915.0,20914.0,0.059]
[1673672571046,3.43110448,20915.0,20914.0,0.059]
[1673672572016,3.71673911,20915.0,20914.0,0.059]
[1673672572527,3.71673911,20915.0,20914.0,0.058]
[1673672574256,4.11718772,20915.0,20914.0,0.058]
[1673672574498,3.95975309,20915.0,20914.0,0.058]
[1673672574760,3.95955339,20915.0,20914.0,0.058]
[1673672575003,3.60255325,20915.0,20914.0,0.058]
[1673672575258,3.95955367,20915.0,20914.0,0.058]
[1673672575736,3.60255325,20915.0,20914.0,0.058]
[1673672575987,3.5868736,20915.0,20914.0,0.058]
[1673672577551,3.32637279,20915.0,20914.0,0.058]
[1673672577793,3.53322758,20915.0,20914.0,0.058]
[1673672578294,3.81867271,20915.0,20914.0,0.058]
[1673672578536,3.81867318,20915.0,20914.0,0.058]
[1673672578772,3.72376825,20915.0,20914.0,0.058]
[1673672579264,3.90319058,20915.0,20914.0,0.058]
[1673672579509,3.59431269,20915.0,20914.0,0.058]
[1673672579747,3.87975925,20915.0,20914.0,0.058]
[1673672580215,3.72376921,20915.0,20914.0,0.058]
[1673672580700,3.74599274,20915.0,20914.0,0.058]
[1673672580956,3.53193124,20915.0,20914.0,0.058]
[1673672581191,3.5809904,20915.0,20914.0,0.058]